bitfinex-derivatives/quotes_ETHF0:USTF0_20260308
["timestamp","ask_amount","ask_price","bid_price","bid_amount"]
[1773013261924,0.55298401,1940.4,1939.5,0.59273535]
[1773013265225,0.55298401,1940.4,1939.1,0.58430085]
[1773013266917,0.57013206,1940.3,1939.1,0.58430085]
[1773013269129,0.00409377,1940.4,1939.3,0.59639288]
[1773013269322,0.00409377,1940.4,1939.5,0.59639288]
[1773013270626,0.55340751,1940.8,1939.5,0.59639288]
[1773013271028,0.55340751,1940.8,1939.7,0.59639288]
[1773013271329,0.55750127,1941.1,1939.9,0.59639288]
[1773013271832,0.00548431,1941.1,1939.9,0.59639288]
[1773013273225,0.5589953,1942.1,1940.5,0.59639288]
[1773013273528,0.5589953,1942.1,1940.9,0.59639288]
[1773013273730,0.5589953,1942.1,1941.1,0.59639288]
[1773013274030,0.56366483,1942.1,1941.1,0.60263143]
[1773013275430,0.56366483,1942.1,1941.1,0.00623855]
[1773013276830,0.56366483,1942.1,1941.1,0.60263143]
[1773013293239,7.29666483,1942.1,1941.1,0.60263143]
[1773013293542,0.00466953,1942.1,1941.1,0.60263143]
[1773013293736,0.54838024,1942.1,1941.1,0.60263143]
[1773013302647,0.5334902,1941.9,1941.1,0.60263143]
[1773013302850,0.53349019,1941.7,1941.1,0.60263143]
[1773013303351,7.26749019,1941.9,1941.1,0.60263143]
[1773013304850,0.53511994,1941.8,1941.1,0.60263143]
[1773013305650,0.53511994,1941.6,1940.7,0.55635806]
[1773013305856,0.53511994,1941.4,1940.4,0.55635806]
[1773013306152,0.53511994,1941.2,1940.4,0.55635806]
[1773013306354,0.54488054,1941.0,1940.4,0.55635806]
[1773013306555,6.735,1941.1,1940.4,0.55635806]
[1773013306754,6.735,1941.2,1940.4,0.56032159]
[1773013307352,7.27988054,1941.3,1940.4,0.56032159]
[1773013307548,6.735,1941.4,1940.4,0.56032159]
[1773013307748,0.25751,1941.8,1940.4,0.56032159]
[1773013307749,0.54488053,1941.5,1940.4,0.56032159]
[1773013308956,7.28302435,1941.4,1940.4,0.56032159]
[1773013309154,7.28302435,1941.3,1940.4,0.56032159]
[1773013309853,0.25751,1941.8,1940.4,0.56032159]
[1773013309854,7.28302435,1941.5,1940.4,0.56032159]
[1773013310447,0.54471264,1941.7,1940.4,0.56032159]
[1773013310650,7.28071264,1941.5,1940.4,0.56032159]
[1773013311256,0.54471264,1941.5,1940.4,0.56032159]
[1773013312257,7.28071264,1941.5,1940.4,0.56032159]
[1773013314456,0.5479238,1941.4,1940.4,0.56032159]
[1773013315063,7.2839238,1941.5,1940.4,0.56032159]
[1773013315460,0.5479238,1941.4,1940.4,0.56032159]
[1773013316162,7.28392379,1941.5,1940.4,0.56032159]
[1773013317060,7.28392379,1941.5,1940.6,0.55635806]
[1773013318458,0.54805639,1941.4,1940.6,0.55635806]
[1773013319458,0.54409286,1941.2,1940.1,0.55635806]
[1773013319663,0.54409286,1941.0,1940.1,0.55635806]
[1773013320362,0.54409286,1941.0,1940.1,0.56156125]
[1773013320664,0.25751,1941.8,1940.3,0.55635806]
[1773013320962,0.5494063,1941.6,1940.5,0.55635806]
[1773013321166,6.736,1941.5,1940.9,0.55635806]
[1773013321366,7.2854063,1941.5,1940.9,0.55635806]
[1773013321567,0.5494063,1941.4,1940.9,0.55635806]
[1773013321871,0.5494063,1941.4,1940.5,0.55635806]
[1773013322065,0.5494063,1941.4,1939.5,6.736]
[1773013322066,0.5442031,1940.8,1939.5,0.55635806]
[1773013322366,0.54165702,1940.6,1939.7,0.55635806]
[1773013322566,0.54165702,1940.4,1939.2,0.55635806]
[1773013322765,0.54165702,1940.2,1939.2,0.55635806]
[1773013322966,0.54211586,1940.0,1939.2,0.55635806]
[1773013323170,0.54211586,1939.8,1939.2,0.00457641]
[1773013323360,0.54210213,1939.6,1938.8,0.54114288]
[1773013323564,0.53752572,1939.4,1938.0,0.54114288]
[1773013323862,0.53752572,1939.2,1938.0,0.54114288]
[1773013324074,0.53752572,1939.0,1938.0,0.54114288]
[1773013324267,0.53752572,1938.8,1938.0,0.54114288]
[1773013324467,7.28248165,1938.7,1938.0,0.54551435]
[1773013325069,0.54548165,1938.6,1938.0,0.54551435]
[1773013326765,0.54548165,1938.6,1938.0,0.00437147]
[1773013326967,0.54548165,1938.6,1937.7,0.54537278]
[1773013327378,6.738,1938.5,1937.7,0.54537278]
[1773013327671,0.46807092,1938.4,1937.7,0.54537278]
[1773013327871,0.46807092,1938.4,1937.7,0.55123982]
[1773013328372,6.739,1938.3,1937.7,0.55123982]
[1773013328574,7.24993928,1938.6,1937.7,0.55123982]
[1773013328777,0.56062934,1938.2,1937.0,0.54537278]
[1773013328970,0.56062934,1938.0,1937.0,0.54537278]
[1773013329273,0.56062934,1937.8,1937.0,0.54537278]
[1773013329470,0.56062934,1937.6,1937.0,0.54537278]
[1773013329669,7.29962934,1937.6,1937.0,0.54537278]
[1773013329869,0.56062934,1938.2,1937.0,0.54936307]
[1773013330074,0.56062934,1938.0,1937.0,0.54936307]
[1773013330269,0.56062934,1937.8,1937.0,0.54936307]
[1773013330470,0.56062934,1937.7,1937.0,0.54936307]
[1773013331370,0.56062934,1937.9,1937.0,0.54936307]
[1773013331771,6.74,1938.0,1937.0,0.54936307]
[1773013331974,7.30062934,1938.0,1937.0,0.54936307]
[1773013332374,7.30162934,1938.0,1937.0,0.54936307]
[1773013332775,0.56062934,1938.0,1937.0,0.54936307]
[1773013333374,6.741,1938.1,1937.0,0.54936307]
[1773013334076,0.56062934,1938.6,1937.2,0.54537278]
[1773013334277,0.56062934,1938.6,1937.5,0.54537278]
[1773013335578,0.56062934,1938.2,1937.1,0.54537278]
[1773013335777,3.19236359,1938.3,1937.1,0.54537278]
[1773013335778,0.56062934,1938.0,1937.1,0.54537278]
[1773013336676,6.741,1937.9,1937.1,0.54537278]
[1773013336881,7.30162934,1938.1,1937.1,0.54537278]
[1773013337085,6.741,1938.2,1937.1,0.54537278]
[1773013337377,7.30162934,1938.2,1937.1,0.54537278]
[1773013337572,6.741,1938.3,1937.2,0.54537278]
[1773013337769,6.741,1938.5,1937.2,0.54537278]
[1773013337974,7.30162934,1938.5,1937.2,0.54537278]
[1773013338170,0.56062934,1938.5,1937.4,0.54537278]
[1773013338580,7.30162934,1938.5,1937.4,0.54537278]
[1773013339478,0.00380246,1938.8,1937.6,0.54537278]
[1773013339783,0.56062934,1938.6,1937.6,0.54537278]
[1773013341172,0.56062934,1938.6,1937.7,0.25805]
[1773013341378,0.5919627,1938.8,1937.8,0.57382138]
[1773013342874,0.00380246,1938.8,1938.0,0.57382138]
[1773013343072,0.5919627,1938.8,1938.0,0.57382138]
[1773013343585,0.00380246,1938.8,1938.2,0.57382138]
[1773013344176,0.58816024,1939.7,1938.4,0.57382138]
[1773013344379,0.58816024,1939.5,1938.4,0.57382138]
[1773013344579,0.58816024,1939.3,1938.4,0.57382138]
[1773013344884,0.58816024,1939.2,1938.4,0.57382138]
[1773013345279,0.59267546,1939.2,1938.4,0.57762071]
[1773013345886,0.00451522,1939.2,1938.6,0.57382138]
[1773013346081,0.00451522,1939.2,1938.8,0.57382138]
[1773013346281,0.58816024,1939.6,1938.8,0.57382138]
[1773013347076,0.58816024,1940.5,1939.0,0.57382138]
[1773013347388,0.58816024,1940.3,1939.0,0.57382138]
[1773013347884,0.58816024,1940.1,1939.2,0.57382138]
[1773013348086,0.58816024,1940.1,1938.7,0.57382138]
[1773013350887,0.58816024,1939.9,1938.7,0.57382138]
[1773013352194,0.58816024,1939.7,1938.7,0.57382138]
[1773013353591,0.58012699,1939.5,1938.7,0.57382138]
[1773013355994,0.58012699,1939.5,1938.5,0.56613352]
[1773013357296,0.58012699,1939.3,1938.5,0.56613352]
[1773013357491,0.58012699,1939.3,1938.4,0.00379933]
[1773013358497,0.58012699,1939.1,1938.4,0.56993285]
[1773013358697,0.58477984,1939.1,1938.4,0.56993285]
[1773013358898,0.00465285,1939.1,1938.4,0.56993285]
[1773013359090,0.58477984,1939.1,1938.4,0.56993285]
[1773013374405,0.58012699,1939.6,1938.6,0.56613352]
[1773013375301,0.58012699,1939.5,1938.6,0.56613352]
[1773013375610,0.58443951,1939.5,1938.6,0.56613352]
[1773013379004,0.58443951,1939.5,1938.4,0.00379933]
[1773013379005,0.58443951,1939.5,1938.4,0.56993285]
[1773013379311,0.58012699,1939.4,1938.4,0.00379933]
[1773013380102,0.58012699,1939.1,1937.7,0.56613352]
[1773013380303,0.58012699,1938.9,1937.7,0.56613352]
[1773013380500,0.58012699,1938.9,1938.1,0.56613352]
[1773013381105,0.58012699,1938.9,1938.1,0.57110335]
[1773013382310,0.58012699,1939.1,1938.3,0.56613352]
[1773013387508,0.58807779,1939.4,1938.5,0.57903948]
[1773013387909,0.59239031,1939.5,1938.5,0.57903948]
[1773013389208,0.00431252,1939.5,1938.7,0.57903948]
[1773013389408,0.58807779,1940.1,1938.9,0.57903948]
[1773013389609,0.58807779,1940.0,1938.9,0.57903948]
[1773013390508,0.58807779,1940.0,1938.4,15.99658732]
[1773013390509,0.59436933,1940.0,1938.5,0.57903948]
[1773013391115,0.58807779,1939.8,1938.5,0.57903948]
[1773013391814,0.58807779,1939.6,1938.5,0.57903948]
[1773013392907,0.58807779,1939.5,1938.5,0.57903948]
[1773013393116,0.58807779,1939.5,1938.3,0.57903948]
[1773013394421,0.58807779,1939.5,1938.1,0.58400931]
[1773013395915,0.58807779,1939.3,1938.1,0.58400931]
[1773013396115,0.58807779,1939.1,1938.1,0.58400931]
[1773013396319,0.58807779,1938.9,1938.1,0.58400931]
[1773013396512,7.32807779,1938.9,1938.1,0.58400931]
[1773013397519,0.58807779,1938.9,1938.1,0.58400931]
[1773013397821,7.32807779,1939.1,1938.1,0.58400931]
[1773013398019,0.58807779,1939.0,1938.1,0.58400931]
[1773013398619,0.58807779,1939.2,1938.1,0.58400931]
[1773013399117,0.58807779,1939.5,1938.3,0.57903948]
[1773013400622,6.74,1939.4,1938.3,0.57903948]
[1773013400919,0.58807779,1939.3,1938.3,0.57903948]
[1773013402726,0.58807779,1939.4,1938.3,0.57903948]
[1773013403529,7.32807779,1939.5,1938.3,0.57903948]
[1773013403728,7.32807779,1939.5,1938.5,0.57903948]
[1773013403931,0.58807779,1939.7,1938.5,0.57903948]
[1773013404324,0.58807779,1939.7,1938.7,0.57903948]
[1773013404625,6.74,1939.8,1938.9,0.57903948]
[1773013404820,0.58807779,1939.8,1938.9,0.57903948]
[1773013405219,0.58807779,1939.8,1938.5,56.79658732]
[1773013405220,0.59436933,1940.0,1939.1,0.57903948]
[1773013405622,0.59436933,1940.0,1939.3,0.57903948]
[1773013406729,0.00629154,1940.0,1939.3,0.57903948]
[1773013406930,0.59436933,1940.0,1939.3,0.57903948]
[1773013407625,0.00629154,1940.0,1939.5,0.57903948]
[1773013407830,0.58807779,1940.2,1939.5,0.58276932]
[1773013408830,0.59251786,1940.2,1939.5,0.58276932]
[1773013409034,0.59251786,1940.2,1939.7,0.57903948]
[1773013410441,0.00444007,1940.2,1939.7,0.57903948]
[1773013410735,0.59251786,1940.2,1939.6,0.83682948]
[1773013411333,0.59251786,1940.2,1939.7,0.57903948]
[1773013411738,0.59251786,1940.2,1939.6,0.25779]
[1773013411935,0.59251786,1940.2,1939.6,0.83682948]
[1773013413530,0.59251786,1940.2,1939.6,0.57903948]
[1773013414134,0.59251786,1940.2,1939.5,0.57143858]
[1773013414745,0.00444007,1940.2,1939.5,0.57143858]
[1773013415332,0.59352843,1940.2,1939.5,0.57143858]
[1773013417540,0.00444007,1940.2,1939.5,0.57143858]
[1773013420834,0.59352843,1940.2,1939.5,0.57143858]
[1773013421146,0.59352843,1940.2,1939.5,0.00372984]
[1773013421843,0.58908836,1940.0,1939.2,0.56770874]
[1773013422136,0.58908836,1940.0,1938.6,0.25793]
[1773013422137,0.58908836,1940.0,1939.0,0.56770874]
[1773013423039,0.58908836,1940.0,1939.0,0.57161148]
[1773013427146,0.00444007,1940.2,1939.0,0.57161148]
[1773013427344,0.59352843,1940.2,1939.0,0.57161148]
[1773013429650,0.58908836,1940.1,1939.0,0.57161148]
[1773013431250,0.58908836,1939.9,1939.0,0.57161148]
[1773013434251,0.58908836,1939.7,1939.0,0.57161148]
[1773013437159,0.58908836,1939.7,1939.0,0.00390274]
[1773013437361,0.58908836,1939.5,1938.6,0.56770874]
[1773013438258,0.58908836,1939.5,1938.6,0.5740545]
[1773013444162,0.58569471,1939.7,1938.6,0.5740545]
[1773013446664,0.54372397,1939.6,1938.6,0.5740545]
[1773013452072,0.54372397,1939.4,1938.6,0.54930145]
[1773013452269,0.54372397,1939.2,1938.6,0.54930145]
[1773013453974,0.54372397,1939.3,1938.6,0.54930145]
[1773013455072,3.44819547,1940.1,1938.6,0.54930145]
[1773013455073,0.54372397,1940.0,1938.6,0.54930145]
[1773013455269,0.54372397,1939.8,1938.6,0.54930145]
[1773013456070,0.54372397,1939.7,1938.6,0.54930145]
[1773013457775,7.28672397,1939.7,1938.6,0.54930145]
[1773013457971,0.54372397,1939.6,1938.6,0.54930145]
[1773013464275,0.54372397,1939.6,1938.7,0.54295569]
[1773013467583,0.54372397,1939.6,1938.9,0.54295569]
[1773013469186,0.00444007,1940.2,1939.0,0.54295569]
[1773013469187,0.54372397,1940.1,1939.0,0.54295569]
[1773013469386,0.54372397,1939.9,1939.0,0.54295569]
[1773013477590,0.58938994,1939.8,1939.0,0.54295569]
[1773013479695,0.58938994,1939.4,1938.8,0.560485]
[1773013479897,0.58938994,1939.4,1938.6,0.00634576]
[1773013479898,0.58938994,1939.2,1938.7,0.560485]
[1773013484598,0.58938994,1939.2,1938.6,0.56683076]
[1773013485291,0.58938994,1939.2,1938.6,0.00634576]
[1773013487598,0.58938994,1939.2,1938.6,0.56683076]
[1773013488404,0.58938994,1939.2,1938.1,0.560485]
[1773013488795,0.58938994,1938.9,1938.1,0.560485]
[1773013489006,0.58938994,1938.8,1938.1,0.560485]
[1773013489395,0.58938994,1938.6,1937.5,0.560485]
[1773013489595,0.58938994,1938.2,1937.5,0.560485]
[1773013489802,0.58938994,1938.1,1937.5,0.560485]
[1773013490405,0.58938994,1938.1,1937.5,0.00617681]
[1773013492608,0.58938994,1938.1,1937.5,0.56666181]
[1773013493610,0.58938994,1938.1,1937.5,0.00617681]
[1773013494511,0.58938994,1938.1,1937.5,0.56666181]
[1773013494711,7.33438994,1938.1,1937.5,0.56666181]
[1773013495207,0.58938994,1938.7,1937.5,0.56666181]
[1773013495412,0.58938994,1938.5,1937.5,0.56666181]
[1773013496709,0.58938994,1938.5,1936.9,0.560485]
[1773013496912,0.58938994,1938.3,1936.9,0.560485]
[1773013497111,0.58938994,1938.1,1936.9,0.560485]
[1773013497713,0.58938994,1938.1,1936.9,0.56672609]
[1773013498413,6.746,1938.2,1936.9,0.56672609]
[1773013498414,0.58938994,1937.9,1936.9,0.56672609]
[1773013501109,0.58938994,1937.7,1936.9,0.00624109]
[1773013501317,0.58938994,1937.4,1935.8,0.560485]
[1773013501610,0.58938994,1937.1,1935.8,0.560485]
[1773013502308,0.59601988,1937.1,1935.8,0.56513435]
[1773013503313,0.00662994,1937.1,1936.3,0.54114742]
[1773013503617,0.58054218,1937.1,1936.3,0.54114742]
[1773013505021,0.57391224,1937.4,1936.3,0.54114742]
[1773013506009,0.58043789,1937.4,1936.3,0.46711395]
[1773013507118,0.59792037,1937.1,1936.0,0.45946619]
[1773013507421,0.59792037,1936.9,1936.0,0.45946619]
[1773013508121,0.59792037,1936.9,1936.0,0.46554507]
[1773013508322,0.59792037,1936.9,1936.1,0.55303432]
[1773013509321,0.59792037,1936.9,1936.1,0.55883965]
[1773013509822,0.59792037,1936.9,1936.1,0.00580533]
[1773013510217,0.59792037,1936.9,1935.7,0.55303432]
[1773013510829,0.59792037,1936.9,1935.2,0.55303432]
[1773013511331,0.59792037,1936.9,1935.2,0.55861112]
[1773013513229,0.83517713,1936.7,1935.2,0.55861112]
[1773013514229,0.83508545,1936.5,1935.4,0.55303432]
[1773013514432,0.2581,1937.3,1935.5,0.55303432]
[1773013514433,0.83433327,1936.8,1935.5,0.55303432]
[1773013516230,0.83424439,1937.3,1935.7,0.55303432]
[1773013516432,0.84315703,1937.1,1935.9,0.55303432]
[1773013517432,0.84315703,1937.1,1936.1,0.55303432]
[1773013518836,0.8661835,1937.3,1936.3,0.55303432]
[1773013519032,0.8661835,1937.3,1936.4,0.55303432]
[1773013519835,0.00652565,1937.4,1936.6,0.55303432]
[1773013520034,0.86598866,1937.6,1936.6,0.55907656]
[1773013520331,0.86598866,1938.0,1936.9,0.25815]
[1773013520537,0.86598866,1938.0,1937.0,0.55303432]
[1773013521037,0.86598866,1938.0,1937.2,0.55303432]
[1773013521236,0.87194033,1938.0,1937.2,0.55303432]
[1773013524133,0.87194033,1938.0,1937.1,0.25813]
[1773013524335,0.87194033,1938.0,1936.9,0.55303432]
[1773013524737,0.87194033,1938.0,1936.7,0.55303432]
[1773013525336,0.87194033,1938.0,1936.8,0.81120432]
[1773013525840,0.87194033,1938.0,1936.8,0.25817]
[1773013526031,0.87194033,1938.0,1936.8,0.81120432]
[1773013526233,0.87194033,1938.0,1937.1,0.55303432]
[1773013527238,0.87194033,1938.0,1937.2,0.25811]
[1773013527438,0.89210819,1938.2,1937.3,0.55303432]
[1773013527636,18.61395882,1940.4,1936.6,0.00604224]
[1773013527637,0.89210819,1938.5,1937.9,0.55303432]
[1773013527837,0.89210819,1938.5,1937.8,0.25802]
[1773013528042,0.89210819,1938.5,1937.5,0.55303432]
[1773013528547,0.89830484,1938.5,1937.5,0.55303432]
[1773013533347,1.39619622,1938.8,1937.5,0.55303432]
[1773013533550,1.39619622,1939.0,1937.7,1.03268673]
[1773013533750,1.39619622,1939.0,1937.9,1.03268673]
[1773013534546,1.40039825,1939.0,1937.9,1.03268673]
[1773013534746,1.40039825,1939.0,1937.9,1.02822756]
[1773013535851,1.65392622,1940.1,1937.9,1.02822756]
[1773013536047,1.65392622,1940.1,1937.8,9.94345414]
[1773013536048,1.65392622,1940.1,1938.1,1.00593295]
[1773013536448,1.65392622,1940.1,1938.3,1.00930202]
[1773013536650,1.65392622,1940.1,1938.5,1.00930202]
[1773013536851,1.65916047,1940.1,1938.6,1.00930202]
[1773013538149,1.39619622,1939.6,1938.5,0.00494089]
[1773013538351,1.65402622,1939.3,1937.5,0.92524466]
[1773013538549,1.39619622,1938.9,1937.5,0.92524466]
[1773013538751,1.39619622,1938.7,1937.5,0.92524466]
[1773013539347,1.40257613,1938.7,1937.5,0.00457947]
[1773013540151,1.39619622,1938.5,1937.5,0.00457947]
[1773013541151,1.39619622,1938.5,1937.5,0.9189039]
[1773013541551,1.39619622,1938.5,1937.5,0.00457947]
[1773013542856,1.39619622,1938.3,1937.0,0.90093186]
[1773013543960,1.39619622,1938.3,1937.0,0.90538384]
[1773013546449,1.39619622,1938.3,1936.9,6.744]
[1773013546450,1.39619622,1938.3,1936.9,6.64938384]
[1773013546859,1.39619622,1938.3,1937.0,0.02533653]
[1773013547555,1.39619622,1938.3,1937.0,0.03014466]
[1773013547957,1.39619622,1938.1,1937.0,0.00480813]
[1773013549856,1.39619622,1937.9,1937.0,0.00480813]
[1773013550061,0.25806,1937.6,1936.3,6.746]
[1773013550360,1.39619622,1937.5,1936.0,6.746]
[1773013550560,1.39619622,1937.5,1936.1,6.746]
[1773013551156,1.39619622,1937.5,1936.1,6.75070033]
[1773013556069,1.39539622,1937.5,1936.1,6.75070033]
[1773013556760,1.39619622,1937.3,1936.1,6.75070033]
[1773013556964,1.39619622,1937.1,1936.1,0.00470033]
[1773013557357,1.39619622,1936.9,1936.1,0.00470033]
[1773013560965,1.65436622,1936.9,1935.2,0.08986803]
[1773013561760,1.65436622,1936.9,1935.2,0.0952486]
[1773013561967,1.39619622,1936.3,1934.5,0.95283957]
[1773013562265,1.39619622,1936.1,1934.5,0.95283957]
[1773013562467,1.39619622,1935.9,1934.5,0.95283957]
[1773013562662,1.39619622,1935.9,1934.6,6.748]
[1773013563061,1.36419248,1935.8,1934.6,6.748]
[1773013563267,1.36419248,1935.8,1934.6,6.75200088]
[1773013563268,1.368326,1935.8,1934.6,6.75200088]
[1773013563862,0.00413352,1935.8,1934.6,6.75200088]
[1773013564064,1.36357262,1936.1,1934.7,5.39942993]
[1773013564264,1.36357262,1936.1,1934.6,6.75200088]
[1773013564466,1.36357262,1936.1,1934.7,0.25845]
[1773013564770,1.36357262,1936.1,1934.7,46.45015241]
[1773013565068,1.36848279,1936.1,1934.7,46.45015241]
[1773013565767,1.36848279,1936.1,1934.8,6.749]
[1773013566166,1.36848279,1936.1,1934.9,5.56712782]
[1773013566365,1.62675279,1936.1,1934.6,0.00400088]
[1773013567472,1.35782213,1935.9,1934.6,0.00400088]
[1773013568272,1.35782213,1935.8,1934.6,0.00400088]
[1773013568772,1.35782213,1935.8,1934.5,0.95283957]
[1773013568773,1.32880601,1935.4,1934.5,0.95283957]
[1773013569874,1.32855411,1935.3,1934.5,0.95732675]
[1773013572971,6.75,1935.2,1934.5,0.95732675]
[1773013573175,1.35110743,1935.1,1934.5,0.95732675]
[1773013574177,1.35110743,1935.1,1934.0,0.77024116]
[1773013574483,1.35110743,1935.1,1934.2,0.78132741]
[1773013575083,1.35110743,1935.1,1934.2,0.78532065]
[1773013575481,6.75,1935.6,1934.2,0.78532065]
[1773013575684,1.24767962,1935.5,1934.2,0.78532065]
[1773013575886,1.24767962,1935.4,1934.2,0.78532065]
[1773013578183,1.24767962,1935.3,1934.2,0.78532065]
[1773013578386,1.24767962,1935.6,1934.4,0.7583875]
[1773013579287,0.00491017,1936.1,1935.2,3.20238655]
[1773013579479,0.00491017,1936.1,1935.3,0.74612808]
[1773013579683,1.25258979,1936.1,1935.3,0.74612808]
[1773013580486,0.00491017,1936.1,1935.3,0.74612808]
[1773013580984,1.25258979,1936.1,1935.3,0.74612808]
[1773013581983,0.00491017,1936.1,1935.3,0.74612808]
[1773013583391,1.25258979,1936.1,1935.3,0.74612808]
[1773013585787,0.00491017,1936.1,1935.3,0.74612808]
[1773013586090,0.00491017,1936.1,1935.3,1.00448808]
[1773013586290,0.00491017,1936.1,1935.4,0.65730113]
[1773013586993,1.25258979,1936.1,1935.4,0.65730113]
[1773013591285,1.24767962,1937.1,1935.6,0.63321584]
[1773013591594,1.24767962,1937.1,1935.8,1.2830773]
[1773013591783,1.24767962,1937.1,1935.9,1.5413673]
[1773013591983,1.24767962,1937.1,1935.9,0.25829]
[1773013592387,1.25421622,1937.1,1935.9,1.54554772]
[1773013595496,1.25421622,1937.1,1936.4,1.12236516]
[1773013595697,0.0065366,1937.1,1936.4,1.12236516]
[1773013595896,0.25799,1938.2,1936.3,6.748]
[1773013595897,1.16228025,1938.2,1936.8,1.12236516]
[1773013596697,1.16228025,1938.2,1936.9,1.12236516]
[1773013596901,1.16638908,1938.2,1936.9,1.12236516]
[1773013597897,1.16638908,1938.2,1937.1,1.12236516]
[1773013599503,1.16638908,1938.2,1937.3,1.12236516]
[1773013599704,1.16638908,1938.2,1937.3,1.12641291]
[1773013601006,1.16638908,1938.2,1937.3,0.00404775]
[1773013602801,1.16638908,1938.2,1937.3,1.12641291]
[1773013605705,1.16638908,1938.2,1937.4,1.38045516]
[1773013606208,1.16638908,1938.2,1937.4,1.12236516]
[1773013606604,1.16638908,1938.2,1937.3,0.00404775]
[1773013606805,1.16638908,1938.2,1937.3,1.12641291]
[1773013607303,1.16638908,1938.2,1936.9,1.12236516]
[1773013608407,1.16638908,1938.2,1936.9,1.12843063]
[1773013611501,1.16638908,1938.2,1937.0,1.12236516]
[1773013615114,0.00410883,1938.2,1937.6,1.12236516]
[1773013615317,1.16228025,1938.4,1937.8,1.12236516]
[1773013615620,1.16228025,1938.4,1937.7,6.748]
[1773013615818,1.16228025,1938.4,1937.4,7.87036516]
[1773013616015,1.16228025,1938.4,1937.4,1.12236516]
[1773013616318,1.16814889,1938.4,1937.4,1.12236516]
[1773013620217,1.16228025,1938.3,1937.3,6.748]
[1773013620419,1.16228025,1938.3,1937.3,7.87036516]
[1773013620618,1.16228025,1938.3,1937.1,1.12236516]
[1773013620817,1.16228025,1938.2,1937.1,1.12236516]
[1773013622720,1.16228025,1938.8,1937.7,1.12236516]
[1773013622919,1.09953104,1939.4,1938.0,1.05258595]
[1773013623120,1.09953104,1939.4,1938.2,1.05258595]
[1773013623626,1.09953104,1939.4,1938.3,6.748]
[1773013623827,1.10373177,1939.4,1938.6,1.05258595]
[1773013624028,0.00420073,1939.4,1938.8,1.05258595]
[1773013626023,1.09953104,1940.0,1938.8,1.05258595]
[1773013626429,1.09953104,1940.0,1938.9,7.8556058]
[1773013626727,1.09953104,1940.0,1939.0,1.1076058]
[1773013627027,1.10620175,1940.0,1939.0,1.1076058]
[1773013627530,1.10620175,1940.0,1939.0,7.8556058]
[1773013627724,1.10620175,1940.0,1939.0,6.748]
[1773013628124,1.10620175,1940.0,1938.8,1.1076058]
[1773013628528,1.07416667,1939.7,1938.6,6.747]
[1773013628727,1.07416667,1939.5,1938.7,1.1076058]
[1773013630323,1.07416667,1939.5,1938.6,6.747]
[1773013630632,1.07416667,1939.5,1938.5,7.8546058]
[1773013630825,1.07416667,1939.5,1938.5,6.747]
[1773013631728,1.07416667,1939.5,1938.3,0.0041293]
[1773013631923,1.07416667,1939.3,1938.3,0.0041293]
[1773013632232,1.07416667,1939.1,1938.3,0.0041293]
[1773013634427,1.07416667,1939.1,1937.9,1.1076058]
[1773013634728,1.07416667,1938.9,1937.7,1.1076058]
[1773013634932,1.07416667,1938.9,1937.9,1.1076058]
[1773013635133,1.07416667,1938.9,1938.0,1.1076058]
[1773013635631,1.07416667,1938.9,1938.0,1.11294888]
[1773013636332,1.07416667,1939.1,1938.0,1.11294888]
[1773013640738,1.07416667,1938.9,1937.6,1.1076058]
[1773013641635,1.07416667,1938.5,1937.2,1.1076058]
[1773013641842,1.07416667,1938.3,1937.2,1.11377073]
[1773013642845,1.07416667,1938.3,1937.4,1.1076058]
[1773013643141,1.08032129,1938.5,1937.4,1.1076058]
[1773013645849,1.08032129,1938.5,1937.2,1.11377073]
[1773013646038,1.07416667,1938.3,1937.2,1.11377073]
[1773013646246,1.07416667,1938.3,1937.2,0.00616493]
[1773013653853,1.02349306,1938.1,1937.2,0.00616493]
[1773013656048,0.25803,1937.8,1936.4,0.94442747]
[1773013656254,1.02349306,1937.7,1936.4,0.94442747]
[1773013657049,1.02349306,1937.7,1936.4,0.94885859]
[1773013658449,1.02349306,1937.7,1936.5,0.94442747]
[1773013659752,0.25806,1937.6,1936.5,0.94442747]
[1773013659957,1.02349306,1937.4,1936.4,0.94885859]
[1773013660158,1.02349306,1937.3,1936.4,0.94885859]
[1773013660757,1.02349306,1937.3,1936.5,0.001]
[1773013661361,1.02349306,1937.3,1936.5,0.94542747]
[1773013661861,1.02349306,1937.3,1936.5,0.001]
[1773013662954,1.02349306,1937.3,1936.5,0.94542747]
[1773013663159,1.02349306,1937.6,1936.5,0.94542747]
[1773013669358,1.02349306,1937.9,1936.5,0.94542747]
[1773013670360,1.02349306,1937.8,1936.6,0.94442747]
[1773013672965,1.02349306,1937.6,1936.6,0.94442747]
[1773013674564,1.02349306,1937.6,1936.5,0.94542747]
[1773013684776,0.93445076,1937.5,1936.5,0.001]
[1773013685072,0.93445076,1937.3,1936.5,0.001]
[1773013685274,0.93445076,1937.1,1936.5,0.001]
[1773013685464,0.94004194,1937.1,1936.5,0.87491354]
[1773013686272,0.94004194,1937.1,1936.5,0.001]
[1773013687977,0.94004194,1937.1,1935.8,13.39599251]
[1773013688172,0.94004194,1937.1,1935.9,0.85949841]
[1773013688376,0.94004194,1937.1,1936.0,0.85949841]
[1773013689074,0.94004194,1937.1,1936.0,0.8633588]
[1773013695975,0.90136809,1936.8,1936.0,0.00386039]
[1773013696180,0.90136809,1936.6,1936.0,0.00386039]
[1773013701291,0.90136809,1936.4,1936.0,0.00386039]
[1773013701489,0.90136809,1936.3,1936.0,0.00386039]
[1773013701683,0.90136809,1936.3,1935.8,0.85949841]
[1773013702686,0.90136809,1936.3,1935.8,0.86486608]
[1773013703183,6.753,1936.4,1935.8,0.86486608]
[1773013703383,0.90136809,1936.6,1935.8,0.86486608]
[1773013703584,7.65436809,1936.6,1935.8,0.86486608]
[1773013703786,6.753,1936.6,1935.8,0.86486608]
[1773013704385,0.90136809,1936.5,1935.8,0.86486608]
[1773013704786,0.90136809,1936.5,1935.8,0.00536767]
[1773013705884,0.90136809,1936.5,1935.8,0.86486608]
[1773013706083,0.90136809,1936.5,1935.8,0.00536767]
[1773013706486,4.09957118,1936.5,1935.8,0.00536767]
[1773013706681,4.09957118,1936.5,1934.8,16.25501732]
[1773013706682,0.90136809,1936.3,1935.3,0.85949841]
[1773013706988,0.90136809,1936.1,1935.3,0.85949841]
[1773013707488,0.90136809,1936.1,1934.7,0.85949841]
[1773013707688,0.90136809,1936.1,1934.7,0.86408455]
[1773013709385,0.90136809,1935.9,1934.9,0.85949841]
[1773013709590,0.90136809,1935.8,1934.9,0.85949841]
[1773013714194,0.90136809,1935.8,1934.7,0.82030143]
[1773013716703,0.90136809,1935.8,1934.7,0.00458614]
[1773013716897,0.8256273,1935.4,1934.7,0.00458614]
[1773013717099,0.8256273,1935.2,1934.3,0.81571529]
[1773013718099,0.8256273,1935.2,1934.3,0.81947457]
[1773013721104,0.8256273,1935.2,1934.3,0.00375928]
[1773013721608,0.8256273,1935.1,1934.3,0.00375928]
[1773013722002,0.8256273,1935.1,1934.2,0.01108625]
[1773013722403,0.8256273,1935.1,1933.8,0.81571529]